fUST/lending_fUST_20251002
["ID","MTS","AMOUNT","RATE_DAILY","PERIOD"]
[388757309,1759349454928,-983.42,0.00020273,2]
[388757310,1759349454937,-395.32,0.00020273,2]
[388757311,1759349454946,-500.0,0.00020273,2]
[388757312,1759349454955,-500.0,0.00020273,2]
[388757313,1759349454964,-500.0,0.00020273,2]
[388757314,1759349454973,-500.0,0.00020273,2]
[388757315,1759349454982,-500.0,0.00020273,2]
[388757316,1759349454991,-480.0,0.00020273,2]
[388757317,1759349455000,-500.0,0.00020273,2]
[388757318,1759349455010,-500.0,0.00020273,2]
[388757319,1759349455019,-500.0,0.00020273,2]
[388757320,1759349455028,-1141.6,0.00020273,2]
[388757321,1759349455038,-500.0,0.00020273,2]
[388757322,1759349455047,-528.75,0.00020273,2]
[388757323,1759349455056,-500.0,0.00020273,2]
[388757324,1759349455065,-500.0,0.00020273,2]
[388757325,1759349455075,-500.0,0.00020273,2]
[388757326,1759349455084,-500.0,0.00020273,2]
[388757327,1759349455093,-500.0,0.00020273,2]
[388757328,1759349455102,-3901.58,0.00020273,2]
[388757329,1759349455111,-500.0,0.00020273,2]
[388757330,1759349455120,-799.4,0.00020273,2]
[388757331,1759349455129,-500.0,0.00020273,2]
[388757332,1759349455139,-956.64,0.00020273,2]
[388757333,1759349455148,-500.0,0.00020273,2]
[388757334,1759349455157,-500.0,0.00020273,2]
[388757335,1759349455165,-500.0,0.00020273,2]
[388757336,1759349455174,-500.0,0.00020273,2]
[388757337,1759349455183,-500.0,0.00020273,2]
[388757338,1759349455191,-271.61065171,0.00020273,2]
[388757339,1759349455200,-5454.05,0.00020273,2]
[388757340,1759349455209,-500.0,0.00020273,2]
[388757341,1759349455219,-500.0,0.00020273,2]
[388757342,1759349455229,-500.0,0.00020273,2]
[388757343,1759349455239,-500.0,0.00020273,2]
[388757344,1759349455247,-500.0,0.00020273,2]
[388757345,1759349455256,-500.0,0.00020273,2]
[388757346,1759349455265,-500.0,0.00020273,2]
[388757347,1759349455275,-500.0,0.00020273,2]
[388757348,1759349455283,-319.05891476,0.00020273,2]
[388757349,1759349455292,-500.0,0.00020273,2]
[388757350,1759349455301,-500.0,0.00020273,2]
[388757351,1759349455309,-500.0,0.00020273,2]
[388757352,1759349455318,-529.92,0.00020273,2]
[388757353,1759349455328,-893.64,0.00020273,2]
[388757354,1759349455337,-500.0,0.00020273,2]
[388757355,1759349455346,-500.0,0.00020273,2]
[388757356,1759349455355,-500.0,0.00020273,2]
[388757357,1759349455364,-440.0,0.00020273,2]
[388757358,1759349455373,-500.0,0.00020273,2]
[388757359,1759349455382,-500.0,0.00020273,2]
[388757360,1759349455392,-500.0,0.00020273,2]
[388757361,1759349455401,-523.64,0.00020273,2]
[388757362,1759349455496,-544.33147788,0.00020273,2]
[388757363,1759349455505,-500.0,0.00020273,2]
[388757364,1759349455514,-500.0,0.00020273,2]
[388757365,1759349455523,-500.0,0.00020273,2]
[388757366,1759349455531,-500.0,0.00020273,2]
[388757367,1759349455540,-500.0,0.00020273,2]
[388757368,1759349455549,-1738.76,0.00020273,2]
[388757369,1759349455558,-1224.23,0.00020273,2]
[388757370,1759349455568,-500.0,0.00020273,2]
[388757371,1759349455577,-500.0,0.00020273,2]
[388757372,1759349455586,-500.0,0.00020273,2]
[388757373,1759349455595,-500.0,0.00020273,2]
[388757374,1759349455605,-500.0,0.00020273,2]
[388757375,1759349455615,-648.84,0.00020273,2]
[388757376,1759349455625,-500.0,0.00020273,2]
[388757377,1759349455634,-500.0,0.00020273,2]
[388757378,1759349455644,-500.0,0.00020273,2]
[388757379,1759349455653,-500.0,0.00020273,2]
[388757380,1759349455662,-500.0,0.00020273,2]
[388757381,1759349455671,-2216.26,0.00020273,2]
[388757382,1759349455680,-500.0,0.00020273,2]
[388757383,1759349455689,-671.6,0.00020273,2]
[388757384,1759349455698,-847.38,0.00020273,2]
[388757385,1759349455707,-500.0,0.00020273,2]
[388757386,1759349455716,-500.0,0.00020273,2]
[388757387,1759349455728,-340.0,0.00020273,2]
[388757388,1759349455737,-500.0,0.00020273,2]
[388757389,1759349455747,-500.0,0.00020273,2]
[388757390,1759349455755,-500.0,0.00020273,2]
[388757391,1759349455764,-580.17,0.00020273,2]
[388757392,1759349455773,-500.0,0.00020273,2]
[388757393,1759349455782,-500.0,0.00020273,2]
[388757394,1759349455791,-500.0,0.00020273,2]
[388757395,1759349455800,-669.61,0.00020273,2]
[388757396,1759349455810,-500.0,0.00020273,2]
[388757397,1759349455820,-500.0,0.00020273,2]
[388757398,1759349455830,-500.0,0.00020273,2]
[388757399,1759349455839,-500.0,0.00020273,2]
[388757400,1759349455848,-500.0,0.00020273,2]
[388757401,1759349455857,-500.0,0.00020273,2]
[388757402,1759349455866,-500.0,0.00020273,2]
[388757403,1759349455877,-779.18,0.00020273,2]
[388757404,1759349455886,-1045.3,0.00020273,2]
[388757405,1759349455895,-500.0,0.00020273,2]
[388757406,1759349455904,-500.0,0.00020273,2]
[388757407,1759349455913,-500.0,0.00020273,2]
[388757408,1759349455922,-500.0,0.00020273,2]
[388757409,1759349455931,-500.0,0.00020273,2]
[388757410,1759349455940,-500.0,0.00020273,2]
[388757411,1759349455949,-500.0,0.00020273,2]
[388757412,1759349455959,-500.0,0.00020273,2]
[388757413,1759349455967,-749.78,0.00020273,2]
[388757414,1759349455976,-500.0,0.00020273,2]
[388757415,1759349455986,-500.0,0.00020273,2]
[388757416,1759349455995,-460.0,0.00020273,2]
[388757417,1759349456004,-500.0,0.00020273,2]
[388757418,1759349456013,-500.0,0.00020273,2]
[388757419,1759349456023,-500.0,0.00020273,2]
[388757420,1759349456032,-500.0,0.00020273,2]
[388757421,1759349456041,-1097.5,0.00020273,2]
[388757422,1759349456050,-758.92,0.00020273,2]
[388757423,1759349456060,-956.95,0.00020273,2]
[388757424,1759349456069,-632.55651801,0.00020273,2]
[388757425,1759349456078,-500.0,0.00020273,2]
[388757426,1759349456087,-2130.73,0.00020273,2]
[388757427,1759349456096,-500.0,0.00020273,2]
[388757428,1759349456105,-1279.97,0.00020273,2]
[388757429,1759349456114,-500.0,0.00020273,2]
[388757430,1759349456123,-500.0,0.00020273,2]
[388757431,1759349456132,-500.0,0.00020273,2]
[388757432,1759349456141,-913.19,0.00020273,2]
[388757433,1759349456151,-2174.11,0.00020273,2]
[388757434,1759349456160,-1435.33123807,0.00020304,2]
[388757435,1759349456169,-5438.09044223,0.0002031,2]
[388757436,1759349456178,-1000.0,0.00020321,2]
[388757437,1759349456187,-1000.0,0.00020321,2]
[388757438,1759349456196,-296.90833631,0.00020321,2]
[388757439,1759349456205,-592.76219767,0.00020321,2]
[388757440,1759349456215,-1000.0,0.00020321,2]
[388757441,1759349456225,-500.0,0.00020321,2]
[388757442,1759349456235,-500.0,0.00020321,2]
[388757443,1759349456244,-403.21905969,0.00020321,2]
[388757444,1759349456254,-501.47345628,0.00020321,2]
[388757445,1759349456263,-1000.0,0.00020321,2]
[388757446,1759349456272,-1000.0,0.00020321,2]
[388757447,1759349456282,-1006.06717383,0.00020321,2]
[388757448,1759349456291,-1000.0,0.00020321,2]
[388757449,1759349456300,-1000.0,0.00020321,2]
[388757450,1759349456309,-1000.0,0.00020321,2]
[388757451,1759349456318,-1000.0,0.00020321,2]
[388757452,1759349456327,-500.0,0.00020321,2]
[388757453,1759349456336,-154.450076,0.00020346,2]
[388757454,1759349456346,-151.0,0.000204,4]
[388757455,1759349456355,-160.0,0.00020504,2]
[388757456,1759349456365,-160.0,0.00020511,2]
[388757457,1759349456374,-160.0,0.00020511,2]
[388757458,1759349456383,-1000.0,0.00020521,2]
[388757459,1759349456393,-500.0,0.00020521,2]
[388757460,1759349456402,-500.0,0.00020521,2]
[388757461,1759349456411,-1000.0,0.00020521,2]
[388757462,1759349456421,-1000.0,0.00020521,2]
[388757463,1759349456430,-1000.0,0.00020521,2]
[388757464,1759349456439,-500.0,0.00020521,2]
[388757465,1759349456450,-1000.0,0.00020521,2]
[388757466,1759349456460,-500.0,0.00020521,2]
[388757467,1759349456470,-1000.0,0.00020521,2]
[388757468,1759349456481,-1054.84096934,0.00020521,2]
[388757469,1759349456491,-1000.0,0.00020521,2]
[388757470,1759349456500,-1000.0,0.00020521,2]
[388757471,1759349456509,-500.0,0.00020521,2]
[388757472,1759349456519,-1000.0,0.00020521,2]
[388757473,1759349456528,-500.0,0.00020521,2]
[388757474,1759349456537,-500.73488065,0.00020521,2]
[388757475,1759349456547,-1000.0,0.00020521,2]
[388757476,1759349456556,-1000.0,0.00020521,2]
[388757477,1759349456565,-1000.0,0.00020521,2]
[388757478,1759349456574,-500.0,0.00020521,2]
[388757479,1759349456583,-500.0,0.00020521,2]
[388757480,1759349456593,-2617.2,0.00020528,3]
[388757481,1759349456602,-1308.6,0.00020528,3]
[388757482,1759349456611,-654.3,0.00020528,3]
[388757483,1759349456621,-327.16,0.00020528,3]
[388757484,1759349456632,-500.0,0.00020547,2]
[388757485,1759349456641,-500.0,0.00020547,2]
[388757486,1759349456651,-500.0,0.00020547,2]
[388757487,1759349456660,-734.36,0.00020547,2]
[388757488,1759349456670,-500.0,0.00020547,2]
[388757489,1759349456679,-500.0,0.00020547,2]
[388757490,1759349456688,-500.0,0.00020547,2]
[388757491,1759349456697,-500.0,0.00020547,2]
[388757492,1759349456706,-500.0,0.00020547,2]
[388757493,1759349456721,-500.0,0.00020547,2]
[388757494,1759349456731,-500.0,0.00020547,2]
[388757495,1759349456740,-500.0,0.00020547,2]
[388757496,1759349456748,-500.0,0.00020547,2]
[388757497,1759349456759,-500.0,0.00020547,2]
[388757498,1759349456768,-500.0,0.00020547,2]
[388757499,1759349456777,-500.0,0.00020547,2]
[388757500,1759349456786,-460.0,0.00020547,2]
[388757501,1759349456797,-578.18,0.00020547,2]
[388757502,1759349456806,-612.44,0.00020547,2]
[388757503,1759349456815,-500.0,0.00020547,2]
[388757504,1759349456824,-500.0,0.00020547,2]
[388757505,1759349456833,-500.0,0.00020547,2]
[388757506,1759349456842,-500.0,0.00020547,2]
[388757507,1759349456852,-500.0,0.00020547,2]
[388757508,1759349456861,-500.0,0.00020547,2]
[388757509,1759349456871,-500.0,0.00020547,2]
[388757510,1759349456880,-500.0,0.00020547,2]
[388757511,1759349456890,-500.0,0.00020547,2]
[388757512,1759349456899,-273.95438043,0.00020547,2]
[388757513,1759349456908,-500.0,0.00020547,2]
[388757514,1759349456917,-500.0,0.00020547,2]
[388757515,1759349456926,-220.68327672,0.00020547,2]
[388757516,1759349456936,-500.0,0.00020547,2]
[388757517,1759349456945,-500.0,0.00020547,2]
[388757518,1759349456955,-500.0,0.00020547,2]
[388757519,1759349456963,-500.0,0.00020547,2]
[388757520,1759349456971,-500.0,0.00020547,2]
[388757521,1759349456980,-500.0,0.00020547,2]
[388757522,1759349456989,-716.33,0.00020547,2]
[388757523,1759349456998,-837.42,0.00020547,2]
[388757524,1759349457007,-500.0,0.00020547,2]
[388757525,1759349457016,-500.0,0.00020547,2]
[388757526,1759349457025,-500.0,0.00020547,2]
[388757527,1759349457034,-500.0,0.00020547,2]
[388757528,1759349457044,-500.0,0.00020547,2]
[388757529,1759349457054,-500.0,0.00020547,2]
[388757530,1759349457064,-500.0,0.00020547,2]
[388757531,1759349457073,-500.0,0.00020547,2]
[388757532,1759349457083,-500.0,0.00020547,2]
[388757533,1759349457176,-500.0,0.00020547,2]
[388757534,1759349457187,-500.0,0.00020547,2]
[388757535,1759349457196,-500.0,0.00020547,2]
[388757536,1759349457205,-198.59536996,0.00020547,2]
[388757537,1759349457214,-500.0,0.00020547,2]
[388757538,1759349457224,-500.0,0.00020547,2]
[388757539,1759349457233,-500.0,0.00020547,2]
[388757540,1759349457242,-450.55,0.00020547,2]
[388757541,1759349457252,-500.0,0.00020547,2]
[388757542,1759349457262,-380.0,0.00020547,2]
[388757543,1759349457271,-172.11444338,0.00020547,2]
[388757544,1759349457280,-399.42835277,0.00020547,2]
[388757545,1759349457290,-500.0,0.00020547,2]
[388757546,1759349457300,-764.98,0.00020547,2]
[388757547,1759349457309,-500.0,0.00020547,2]
[388757548,1759349457318,-500.0,0.00020547,2]
[388757549,1759349457327,-500.0,0.00020547,2]
[388757550,1759349457336,-500.0,0.00020547,2]
[388757551,1759349457345,-433.47822185,0.00020547,2]
[388757552,1759349457355,-612.5359093,0.00020547,2]
[388757553,1759349457364,-362.78913804,0.00020547,2]
[388757554,1759349457373,-500.0,0.00020547,2]
[388757555,1759349457382,-420.0,0.00020547,2]
[388757556,1759349457391,-500.0,0.00020547,2]
[388757557,1759349457400,-500.0,0.00020547,2]
[388757558,1759349457409,-500.0,0.00020547,2]
[388757559,1759349457419,-500.0,0.00020547,2]
[388757560,1759349457428,-500.0,0.00020547,2]
[388757561,1759349457437,-500.0,0.00020547,2]
[388757562,1759349457446,-500.0,0.00020547,2]
[388757563,1759349457455,-500.0,0.00020547,2]
[388757564,1759349457464,-500.0,0.00020547,2]
[388757565,1759349457474,-500.0,0.00020547,2]
[388757566,1759349457483,-500.0,0.00020547,2]
[388757567,1759349457492,-500.0,0.00020547,2]
[388757568,1759349457501,-590.06,0.00020547,2]
[388757569,1759349457510,-500.0,0.00020547,2]
[388757570,1759349457519,-1549.08,0.00020547,2]
[388757571,1759349457528,-983.42,0.00020547,2]
[388757572,1759349457537,-500.0,0.00020547,2]
[388757573,1759349457546,-500.0,0.00020547,2]
[388757574,1759349457556,-500.0,0.00020547,2]
[388757575,1759349457565,-463.89373646,0.00020547,2]
[388757576,1759349457575,-500.0,0.00020547,2]
[388757577,1759349457583,-500.0,0.00020547,2]
[388757578,1759349457593,-500.0,0.00020547,2]
[388757579,1759349457602,-500.0,0.00020547,2]
[388757580,1759349457611,-1141.6,0.00020547,2]
[388757581,1759349457622,-500.0,0.00020547,2]
[388757582,1759349457631,-528.75,0.00020547,2]
[388757583,1759349457640,-478.83,0.00020547,2]
[388757584,1759349457650,-500.0,0.00020547,2]
[388757585,1759349457659,-500.0,0.00020547,2]
[388757586,1759349457669,-500.0,0.00020547,2]
[388757587,1759349457678,-500.0,0.00020547,2]
[388757588,1759349457687,-3901.58,0.00020547,2]
[388757589,1759349457697,-500.0,0.00020547,2]
[388757590,1759349457707,-799.4,0.00020547,2]
[388757591,1759349457721,-500.0,0.00020547,2]
[388757592,1759349457731,-956.64,0.00020547,2]
[388757593,1759349457740,-500.0,0.00020547,2]
[388757594,1759349457749,-500.0,0.00020547,2]
[388757595,1759349457758,-500.0,0.00020547,2]
[388757596,1759349457767,-500.0,0.00020547,2]
[388757597,1759349457776,-500.0,0.00020547,2]
[388757598,1759349457785,-5454.05,0.00020547,2]
[388757599,1759349457795,-420.0,0.00020547,2]
[388757600,1759349457804,-500.0,0.00020547,2]
[388757601,1759349457813,-500.0,0.00020547,2]
[388757602,1759349457822,-500.0,0.00020547,2]
[388757603,1759349457831,-500.0,0.00020547,2]
[388757604,1759349457841,-500.0,0.00020547,2]
[388757605,1759349457850,-500.0,0.00020547,2]
[388757606,1759349457860,-500.0,0.00020547,2]
[388757607,1759349457870,-500.0,0.00020547,2]
[388757608,1759349457879,-500.0,0.00020547,2]
[388757609,1759349457888,-500.0,0.00020547,2]
[388757610,1759349457898,-529.92,0.00020547,2]
[388757611,1759349457907,-893.64,0.00020547,2]
[388757612,1759349457916,-500.0,0.00020547,2]
[388757613,1759349457926,-500.0,0.00020547,2]
[388757614,1759349457935,-500.0,0.00020547,2]
[388757615,1759349457944,-500.0,0.00020547,2]
[388757616,1759349457954,-500.0,0.00020547,2]
[388757617,1759349457963,-500.0,0.00020547,2]
[388757618,1759349457972,-523.64,0.00020547,2]
[388757619,1759349457980,-500.0,0.00020547,2]
[388757620,1759349457989,-500.0,0.00020547,2]
[388757621,1759349457999,-500.0,0.00020547,2]
[388757622,1759349458008,-500.0,0.00020547,2]
[388757623,1759349458017,-500.0,0.00020547,2]
[388757624,1759349458026,-1738.76,0.00020547,2]
[388757625,1759349458036,-1224.23,0.00020547,2]
[388757626,1759349458045,-500.0,0.00020547,2]
[388757627,1759349458055,-500.0,0.00020547,2]
[388757628,1759349458065,-270.59,0.00020547,2]
[388757629,1759349458074,-500.0,0.00020547,2]
[388757630,1759349458083,-380.0,0.00020547,2]
[388757631,1759349458093,-648.84,0.00020547,2]
[388757632,1759349458102,-500.0,0.00020547,2]
[388757633,1759349458111,-500.0,0.00020547,2]
[388757634,1759349458121,-500.0,0.00020547,2]
[388757635,1759349458131,-500.0,0.00020547,2]
[388757636,1759349458140,-500.0,0.00020547,2]
[388757637,1759349458149,-2216.26,0.00020547,2]
[388757638,1759349458159,-500.0,0.00020547,2]
[388757639,1759349458169,-671.6,0.00020547,2]
[388757640,1759349458178,-847.38,0.00020547,2]
[388757641,1759349458187,-440.0,0.00020547,2]
[388757642,1759349458196,-500.0,0.00020547,2]
[388757643,1759349458205,-440.0,0.00020547,2]
[388757644,1759349458215,-500.0,0.00020547,2]
[388757645,1759349458228,-500.0,0.00020547,2]
[388757646,1759349458237,-580.17,0.00020547,2]
[388757647,1759349458247,-500.0,0.00020547,2]
[388757648,1759349458255,-500.0,0.00020547,2]
[388757649,1759349458264,-500.0,0.00020547,2]
[388757650,1759349458273,-669.61,0.00020547,2]
[388757651,1759349458283,-480.0,0.00020547,2]
[388757652,1759349458292,-500.0,0.00020547,2]
[388757653,1759349458301,-500.0,0.00020547,2]
[388757654,1759349458311,-381.44,0.00020547,2]
[388757655,1759349458320,-500.0,0.00020547,2]
[388757656,1759349458329,-303.72223899,0.00020547,2]
[388757657,1759349458338,-500.0,0.00020547,2]
[388757658,1759349458347,-779.18,0.00020547,2]
[388757659,1759349458356,-1045.3,0.00020547,2]
[388757660,1759349458366,-500.0,0.00020547,2]
[388757661,1759349458375,-500.0,0.00020547,2]
[388757662,1759349458384,-500.0,0.00020547,2]
[388757663,1759349458393,-500.0,0.00020547,2]
[388757664,1759349458403,-507.85327465,0.00020547,2]
[388757665,1759349458411,-500.0,0.00020547,2]
[388757666,1759349458420,-500.0,0.00020547,2]
[388757667,1759349458429,-500.0,0.00020547,2]
[388757668,1759349458438,-749.78,0.00020547,2]
[388757669,1759349458447,-500.0,0.00020547,2]
[388757670,1759349458457,-500.0,0.00020547,2]
[388757671,1759349458466,-500.0,0.00020547,2]
[388757672,1759349458476,-500.0,0.00020547,2]
[388757673,1759349458485,-500.0,0.00020547,2]
[388757674,1759349458495,-1097.5,0.00020547,2]
[388757675,1759349458503,-758.92,0.00020547,2]
[388757676,1759349458512,-956.95,0.00020547,2]
[388757677,1759349458522,-602.85402588,0.00020547,2]
[388757678,1759349458531,-2130.73,0.00020547,2]
[388757679,1759349458540,-500.0,0.00020547,2]
[388757680,1759349458549,-1279.97,0.00020547,2]
[388757681,1759349458558,-485.61,0.00020547,2]
[388757682,1759349458568,-500.0,0.00020547,2]
[388757683,1759349458577,-500.0,0.00020547,2]
[388757684,1759349458586,-913.19,0.00020547,2]
[388757685,1759349458595,-2174.11,0.00020547,2]
[388757686,1759349458604,-260.0,0.00020574,2]
[388757687,1759349458613,-500.0,0.00020633,2]
[388757688,1759349458622,-366.0,0.00020697,2]
[388757689,1759349458631,-420.0,0.00020697,2]
[388757690,1759349458640,-5438.09044223,0.00020721,2]
[388757691,1759349458731,-1435.33123807,0.00020783,2]
[388757692,1759349458741,-1680.0,0.00020798,2]
[388757693,1759349458750,-2000.0,0.00020816,2]
[388757694,1759349458762,-2000.0,0.00020816,2]
[388757695,1759349458771,-2000.0,0.00020816,2]
[388757696,1759349458781,-2000.0,0.00020816,2]
[388757697,1759349458790,-2000.0,0.00020816,2]
[388757698,1759349458803,-2000.0,0.00020816,2]
[388757699,1759349458811,-500.0,0.00020821,2]
[388757700,1759349458820,-457.43,0.00020821,2]
[388757701,1759349458830,-500.0,0.00020821,2]
[388757702,1759349458839,-734.36,0.00020821,2]
[388757703,1759349458848,-500.0,0.00020821,2]
[388757704,1759349458857,-500.0,0.00020821,2]
[388757705,1759349458868,-500.0,0.00020821,2]
[388757706,1759349458877,-500.0,0.00020821,2]
[388757707,1759349458886,-345.74,0.00020821,2]
[388757708,1759349458896,-500.0,0.00020821,2]
[388757709,1759349458906,-500.0,0.00020821,2]
[388757710,1759349458915,-500.0,0.00020821,2]
[388757711,1759349458924,-500.0,0.00020821,2]
[388757712,1759349458934,-500.0,0.00020821,2]
[388757713,1759349458943,-500.0,0.00020821,2]
[388757714,1759349458952,-500.0,0.00020821,2]
[388757715,1759349458961,-500.0,0.00020821,2]
[388757716,1759349458971,-188.04,0.00020821,2]
[388757717,1759349458980,-500.0,0.00020821,2]
[388757718,1759349458990,-500.0,0.00020821,2]
[388757719,1759349458999,-500.0,0.00020821,2]
[388757720,1759349459007,-409.89,0.00020821,2]
[388757721,1759349459018,-500.0,0.00020821,2]
[388757722,1759349459027,-500.0,0.00020821,2]
[388757723,1759349459037,-500.0,0.00020821,2]
[388757724,1759349459047,-500.0,0.00020821,2]
[388757725,1759349459056,-489.16249108,0.00020821,2]
[388757726,1759349459066,-372.7,0.00020821,2]
[388757727,1759349459075,-500.0,0.00020821,2]
[388757728,1759349459084,-500.0,0.00020821,2]
[388757729,1759349459093,-500.0,0.00020821,2]
[388757730,1759349459102,-500.0,0.00020821,2]
[388757731,1759349459111,-500.0,0.00020821,2]
[388757732,1759349459122,-716.33,0.00020821,2]
[388757733,1759349459131,-837.42,0.00020821,2]
[388757734,1759349459141,-500.0,0.00020821,2]
[388757735,1759349459150,-500.0,0.00020821,2]
[388757736,1759349459159,-500.0,0.00020821,2]
[388757737,1759349459168,-340.0,0.00020821,2]
[388757738,1759349459178,-189.51,0.00020821,2]
[388757739,1759349459187,-598.54,0.00020821,2]
[388757740,1759349459196,-414.27,0.00020821,2]
[388757741,1759349459205,-500.0,0.00020821,2]
[388757742,1759349459214,-500.0,0.00020821,2]
[388757743,1759349459223,-500.0,0.00020821,2]
[388757744,1759349459233,-500.0,0.00020821,2]
[388757745,1759349459242,-500.0,0.00020821,2]
[388757746,1759349459251,-500.0,0.00020821,2]
[388757747,1759349459260,-500.0,0.00020821,2]
[388757748,1759349459269,-500.0,0.00020821,2]
[388757749,1759349459279,-609.08,0.00020821,2]
[388757750,1759349459288,-500.0,0.00020821,2]
[388757751,1759349459297,-764.98,0.00020821,2]
[388757752,1759349459306,-500.0,0.00020821,2]
[388757753,1759349459315,-500.0,0.00020821,2]
[388757754,1759349459324,-500.0,0.00020821,2]
[388757755,1759349459334,-500.0,0.00020821,2]
[388757756,1759349459343,-324.68907084,0.00020821,2]
[388757757,1759349459352,-500.0,0.00020821,2]
[388757758,1759349459361,-500.0,0.00020821,2]
[388757759,1759349459371,-500.0,0.00020821,2]
[388757760,1759349459380,-500.0,0.00020821,2]
[388757761,1759349459389,-500.0,0.00020821,2]
[388757762,1759349459399,-500.0,0.00020821,2]
[388757763,1759349459408,-400.0,0.00020821,2]
[388757764,1759349459417,-500.0,0.00020821,2]
[388757765,1759349459426,-500.0,0.00020821,2]
[388757766,1759349459435,-500.0,0.00020821,2]
[388757767,1759349459444,-278.74,0.00020821,2]
[388757768,1759349459454,-500.0,0.00020821,2]
[388757769,1759349459463,-500.0,0.00020821,2]
[388757770,1759349459472,-1549.08,0.00020821,2]
[388757771,1759349459481,-983.42,0.00020821,2]
[388757772,1759349459490,-500.0,0.00020821,2]
[388757773,1759349459500,-500.0,0.00020821,2]
[388757774,1759349459509,-500.0,0.00020821,2]
[388757775,1759349459518,-500.0,0.00020821,2]
[388757776,1759349459528,-500.0,0.00020821,2]
[388757777,1759349459537,-500.0,0.00020821,2]
[388757778,1759349459546,-500.0,0.00020821,2]
[388757779,1759349459556,-1141.6,0.00020821,2]
[388757780,1759349459565,-500.0,0.00020821,2]
[388757781,1759349459574,-528.75,0.00020821,2]
[388757782,1759349459583,-500.0,0.00020821,2]
[388757783,1759349459592,-500.0,0.00020821,2]
[388757784,1759349459601,-500.0,0.00020821,2]
[388757785,1759349459610,-500.0,0.00020821,2]
[388757786,1759349459620,-3901.58,0.00020821,2]
[388757787,1759349459629,-500.0,0.00020821,2]
[388757788,1759349459639,-799.4,0.00020821,2]
[388757789,1759349459648,-348.67,0.00020821,2]
[388757790,1759349459657,-956.64,0.00020821,2]
[388757791,1759349459666,-500.0,0.00020821,2]
[388757792,1759349459675,-604.5,0.00020821,2]
[388757793,1759349459684,-500.0,0.00020821,2]
[388757794,1759349459693,-500.0,0.00020821,2]
[388757795,1759349459702,-5454.05,0.00020821,2]
[388757796,1759349459711,-500.0,0.00020821,2]
[388757797,1759349459724,-500.0,0.00020821,2]
[388757798,1759349459734,-500.0,0.00020821,2]
[388757799,1759349459743,-500.0,0.00020821,2]
[388757800,1759349459752,-500.0,0.00020821,2]
[388757801,1759349459762,-500.0,0.00020821,2]
[388757802,1759349459771,-500.0,0.00020821,2]
[388757803,1759349459780,-500.0,0.00020821,2]
[388757804,1759349459789,-500.0,0.00020821,2]
[388757805,1759349459798,-500.0,0.00020821,2]
[388757806,1759349459807,-529.92,0.00020821,2]
[388757807,1759349459816,-893.64,0.00020821,2]
[388757808,1759349459825,-500.0,0.00020821,2]